bitfinex/quotes_SOLUSD_20250609
["timestamp","ask_amount","ask_price","bid_price","bid_amount"]
[1749463544881,95.21903874,153.74,153.73,20.0]
[1749463546083,84.00451755,153.74,153.73,20.0]
[1749463546378,95.21903874,153.74,153.73,20.0]
[1749463549084,84.00451755,153.74,153.73,20.0]
[1749463549262,95.21903874,153.74,153.73,20.0]
[1749463549764,10.82,153.74,153.73,20.0]
[1749463549967,22.03452119,153.74,153.73,20.0]
[1749463552586,10.82,153.74,153.73,20.0]
[1749463552765,28.53900928,153.74,153.73,20.0]
[1749463556572,17.32448809,153.74,153.73,20.0]
[1749463556770,28.53900928,153.74,153.73,20.0]
[1749463561802,17.32448809,153.74,153.73,20.0]
[1749463561991,28.53900928,153.74,153.73,20.0]
[1749463562697,51.46,153.74,153.73,20.0]
[1749463562994,40.64,153.75,153.74,20.0]
[1749463563999,51.85452119,153.75,153.74,20.0]
[1749463564294,17.30364203,153.76,153.74,20.0]
[1749463564295,10.8,153.76,153.74,20.0]
[1749463564599,10.8,153.76,153.75,20.0]
[1749463565292,146.1,153.8,153.79,20.0]
[1749463565293,17.30205372,153.8,153.79,20.0]
[1749463565465,28.51657491,153.8,153.79,20.0]
[1749463565667,62.65452119,153.8,153.79,20.0]
[1749463565868,18.64964886,153.86,153.73,18.64964886]
[1749463565869,23.9196684,153.87,153.8,20.0]
[1749463566185,57.93941505,153.86,153.85,20.0]
[1749463566389,58.22373819,153.86,153.85,20.0]
[1749463566597,57.93941505,153.86,153.85,20.0]
[1749463567290,69.29609781,153.86,153.85,20.0]
[1749463567494,69.43825938,153.86,153.85,20.0]
[1749463567801,69.29609781,153.86,153.85,20.0]
[1749463568001,28.79825938,153.86,153.85,20.0]
[1749463568197,69.29609781,153.86,153.85,20.0]
[1749463568498,69.15393624,153.86,153.85,20.0]
[1749463568677,28.51393624,153.86,153.85,20.0]
[1749463568883,95.15393624,153.86,153.85,20.0]
[1749463569081,69.13393624,153.86,153.85,20.0]
[1749463569395,54.51393624,153.86,153.85,20.0]
[1749463569630,95.13393624,153.86,153.85,20.0]
[1749463570298,69.13393624,153.86,153.84,20.0]
[1749463570504,26.0,153.84,153.83,20.0]
[1749463570706,26.0,153.84,153.73,26.0]
[1749463570707,37.49884433,153.84,153.81,20.0]
[1749463570890,0.14216157,153.83,153.82,20.0]
[1749463571202,11.35668276,153.83,153.82,20.0]
[1749463571680,17.85736533,153.83,153.82,20.0]
[1749463571880,69.25736533,153.83,153.82,20.0]
[1749463572080,57.90068257,153.83,153.82,20.0]
[1749463572507,6.50068257,153.83,153.82,20.0]
[1749463572685,28.49520376,153.83,153.82,20.0]
[1749463572884,51.4,153.83,153.82,20.0]
[1749463573078,62.61452119,153.83,153.82,20.0]
[1749463573278,69.11520376,153.83,153.82,20.0]
[1749463573688,69.25736533,153.83,153.82,20.0]
[1749463574592,69.11520376,153.83,153.82,20.0]
[1749463577293,26.0,153.81,153.8,20.0]
[1749463577477,48.42904238,153.81,153.8,20.0]
[1749463578593,43.71604904,153.81,153.8,20.0]
[1749463581782,54.93057023,153.81,153.8,20.0]
[1749463582187,43.71604904,153.81,153.8,20.0]
[1749463586403,84.31604904,153.81,153.8,20.0]
[1749463586789,73.10152785,153.81,153.8,20.0]
[1749463586987,6.4998375,153.85,153.84,20.0]
[1749463587194,69.09435869,153.85,153.84,20.0]
[1749463590002,69.07435869,153.85,153.84,20.0]
[1749463590316,57.8598375,153.85,153.84,20.0]
[1749463590492,28.49435869,153.85,153.84,20.0]
[1749463590889,69.07435869,153.85,153.84,20.0]
[1749463591102,62.57452119,153.85,153.84,20.0]
[1749463591588,69.07435869,153.85,153.84,20.0]
[1749463597122,57.8598375,153.85,153.84,20.0]
[1749463597306,69.07435869,153.85,153.84,20.0]
[1749463597513,57.8598375,153.85,153.84,20.0]
[1749463597696,69.07435869,153.85,153.84,20.0]
[1749463604641,26.0,153.83,153.82,20.0]
[1749463604800,43.42341842,153.83,153.81,20.0]
[1749463605005,51.77452119,153.82,153.81,20.0]
[1749463605607,58.27562637,153.82,153.81,20.0]
[1749463607410,64.34236203,153.82,153.81,20.0]
[1749463608123,75.55688322,153.82,153.81,20.0]
[1749463608332,26.0,153.79,153.76,1.5268]
[1749463608524,11.21452119,153.77,153.76,1.5268]
[1749463609523,11.21452119,153.77,153.72,7.7951]
[1749463609725,40.56,153.78,153.72,7.7951]
[1749463609726,11.21452119,153.74,153.72,7.7951]
[1749463609925,40.56,153.78,153.72,7.7951]
[1749463609926,11.21452119,153.73,153.72,7.7951]
[1749463612108,11.21452119,153.73,153.72,1.5658]
[1749463612611,17.71943239,153.73,153.72,1.5658]
[1749463612828,11.21452119,153.73,153.72,1.5658]
[1749463613233,17.71943239,153.73,153.72,1.5658]
[1749463613416,17.71943239,153.73,153.69,18.64964886]
[1749463613613,17.71943239,153.73,153.68,8.0566]
[1749463613614,11.21452119,153.7,153.68,8.0566]
[1749463616333,11.21452119,153.69,153.65,18.64964886]
[1749463616645,11.21452119,153.67,153.66,2.3733174]
[1749463616938,11.21452119,153.67,153.65,18.64964886]
[1749463617121,11.21452119,153.67,153.66,2.37342455]
[1749463617442,11.21452119,153.68,153.66,2.3736305]
[1749463617617,47.06636765,153.7,153.65,18.64964886]
[1749463617618,11.21452119,153.67,153.65,18.64964886]
[1749463617818,11.21452119,153.68,153.65,25.15791198]
[1749463618528,11.21452119,153.68,153.66,2.37344142]
[1749463618738,11.21452119,153.68,153.65,25.15791198]
[1749463618941,40.56,153.7,153.65,25.15791198]
[1749463618942,51.77452119,153.7,153.66,2.37266339]
[1749463619240,51.77452119,153.7,153.65,36.37243317]
[1749463619422,40.56,153.7,153.65,36.37243317]
[1749463619624,51.77452119,153.7,153.66,2.37248839]
[1749463619938,51.77452119,153.7,153.67,2.37208229]
[1749463620245,51.77452119,153.7,153.68,2.37183295]
[1749463620427,51.77452119,153.7,153.67,6.50745103]
[1749463620828,51.77452119,153.7,153.68,2.37183225]
[1749463621034,11.21452119,153.69,153.66,6.50781363]
[1749463621234,11.21452119,153.69,153.67,2.37210221]
[1749463621539,11.21452119,153.69,153.66,6.50781363]
[1749463622056,11.21452119,153.68,153.65,18.64964886]
[1749463622356,11.21452119,153.68,153.66,2.37231779]
[1749463622519,11.21452119,153.68,153.65,18.64964886]
[1749463622724,11.21452119,153.68,153.66,2.37190446]
[1749463622922,11.21452119,153.68,153.65,18.64964886]
[1749463623123,11.21452119,153.68,153.66,2.37175624]
[1749463623441,11.21452119,153.68,153.59,7.9321]
[1749463623442,21.97452119,153.67,153.59,7.9321]
[1749463623624,11.21452119,153.61,153.6,2.37370879]
[1749463623824,11.21452119,153.61,153.6,2.37363233]
[1749463624035,11.21452119,153.61,153.6,2.37380694]
[1749463624236,11.21452119,153.61,153.6,2.37384755]
[1749463624522,11.21452119,153.61,153.6,2.37419103]
[1749463624741,11.21452119,153.61,153.59,7.9321]
[1749463625052,11.21452119,153.63,153.6,2.37410101]
[1749463625258,11.21452119,153.63,153.61,2.37393154]
[1749463625462,40.56,153.66,153.61,18.64964886]
[1749463625627,6.50618087,153.7,153.63,29.86417005]
[1749463625819,11.21452119,153.66,153.64,2.37267541]
[1749463626142,11.21452119,153.66,153.63,18.64964886]
[1749463626342,11.21452119,153.65,153.63,18.64964886]
[1749463626555,11.21452119,153.64,153.61,25.15964169]
[1749463626725,11.21452119,153.63,153.61,25.15964169]
[1749463626928,11.21452119,153.63,153.59,19.14662119]
[1749463626934,11.21452119,153.63,153.62,2.37391808]
[1749463627149,11.21452119,153.63,153.62,2.37387634]
[1749463627338,11.21452119,153.63,153.62,2.37371066]
[1749463627652,11.21452119,153.63,153.6,6.51035894]
[1749463627842,11.21452119,153.63,153.61,2.37380638]
[1749463628027,11.21452119,153.63,153.6,6.51035894]
[1749463628227,11.21452119,153.63,153.61,2.37399193]
[1749463628547,11.21452119,153.63,153.6,6.51035894]
[1749463628739,11.21452119,153.63,153.61,2.37382651]
[1749463629051,11.21452119,153.63,153.6,6.51035894]
[1749463629231,11.21452119,153.62,153.6,6.51035894]
[1749463629433,11.21452119,153.62,153.61,2.37378681]
[1749463629685,11.21452119,153.62,153.6,18.64964886]
[1749463629956,11.21452119,153.62,153.61,2.37353147]
[1749463630253,11.21452119,153.62,153.61,2.37364488]
[1749463630432,11.21452119,153.62,153.58,6.51100539]
[1749463630628,11.21452119,153.6,153.57,25.16124115]
[1749463631153,11.21452119,153.61,153.58,2.3742117]
[1749463631333,11.21452119,153.61,153.59,2.37429402]
[1749463631528,11.21452119,153.61,153.57,25.16119889]
[1749463631730,11.21452119,153.61,153.58,2.37447135]
[1749463631945,11.21452119,153.61,153.59,2.37460039]
[1749463632257,47.06958367,153.62,153.57,25.16119889]
[1749463632258,11.21452119,153.6,153.57,25.16119889]
[1749463632626,11.21452119,153.6,153.55,35.36912543]
[1749463632627,11.21452119,153.59,153.58,2.37471978]
[1749463632829,11.21452119,153.59,153.58,2.37494492]
[1749463633046,11.21452119,153.59,153.58,2.37494284]
[1749463633250,11.21452119,153.59,153.56,18.64964886]
[1749463633454,11.21452119,153.58,153.57,2.37493845]
[1749463633675,11.21452119,153.58,153.54,18.64964886]
[1749463633676,51.77452119,153.58,153.54,18.64964886]
[1749463633853,51.77452119,153.58,153.55,2.37575808]
[1749463633854,11.21452119,153.56,153.55,2.37575808]
[1749463634042,11.21452119,153.56,153.54,18.64964886]
[1749463635243,11.21452119,153.56,153.54,6.51293186]
[1749463635444,11.21452119,153.57,153.53,25.16303386]
[1749463635663,11.21452119,153.57,153.53,36.37755505]
[1749463635964,40.56,153.58,153.54,11.21452119]
[1749463637857,40.56,153.58,153.56,18.64964886]
[1749463638056,11.21452119,153.61,153.56,29.86417005]
[1749463638271,62.53452119,153.62,153.57,11.21452119]
[1749463639173,62.53452119,153.62,153.57,6.51168848]
[1749463639339,11.21452119,153.62,153.58,29.86417005]
[1749463639542,37.5,153.67,153.59,11.21452119]
[1749463639543,11.21452119,153.63,153.59,11.21452119]
[1749463640064,51.3,153.64,153.58,29.86417005]
[1749463640246,51.3,153.64,153.6,11.21452119]
[1749463640247,10.74,153.64,153.6,11.21452119]
[1749463641246,10.74,153.64,153.61,6.50999283]
[1749463641765,10.74,153.66,153.62,29.86417005]
[1749463642743,10.74,153.66,153.63,17.72366653]
[1749463642947,21.95452119,153.66,153.63,6.50914534]
[1749463643249,21.95452119,153.66,153.62,25.15910344]
[1749463643652,21.95452119,153.66,153.62,36.37362463]
[1749463644856,10.74,153.66,153.62,36.37362463]
[1749463645846,10.74,153.66,153.63,11.21452119]
[1749463646045,26.0,153.7,153.64,18.64964886]
[1749463646246,10.74,153.69,153.65,11.21452119]
[1749463646465,51.3,153.69,153.66,11.21452119]
[1749463646861,51.3,153.69,153.65,11.21452119]
[1749463647065,51.3,153.69,153.65,6.50829808]
[1749463647066,62.51452119,153.69,153.65,6.50829808]
[1749463647446,21.95452119,153.69,153.65,6.50829808]
[1749463648168,11.21452119,153.68,153.65,6.50829808]
[1749463649378,10.74,153.69,153.64,25.15825019]
[1749463649379,11.21452119,153.67,153.64,25.15825019]
[1749463649574,11.21452119,153.67,153.65,2.37127669]
[1749463649745,11.21452119,153.67,153.66,2.37123235]
[1749463649950,17.24672735,153.69,153.64,25.15825019]
[1749463649951,11.21452119,153.68,153.64,25.15825019]
[1749463650146,10.74,153.69,153.64,25.15825019]
[1749463650147,10.74,153.69,153.64,36.37277138]
[1749463650346,10.74,153.69,153.66,11.21452119]
[1749463650956,10.74,153.69,153.67,2.3703928]
[1749463651152,10.74,153.69,153.66,11.21452119]
[1749463651349,10.74,153.69,153.67,2.37029653]
[1749463651581,10.74,153.69,153.68,2.37029653]
[1749463651877,24.76531096,153.75,153.68,18.64964886]
[1749463652091,24.76531096,153.75,153.7,11.21452119]
[1749463652092,51.75452119,153.75,153.7,11.21452119]
[1749463652382,10.74,153.76,153.7,11.21452119]
[1749463652383,10.74,153.76,153.71,21.01834042]
[1749463652580,10.74,153.76,153.71,29.86417005]
[1749463652876,21.95452119,153.76,153.72,2.36859709]
[1749463653087,11.21452119,153.75,153.73,2.36859709]
[1749463653254,11.21452119,153.75,153.7,1.5124]
[1749463653454,10.74,153.76,153.68,29.86417005]
[1749463653455,11.21452119,153.72,153.68,29.86417005]
[1749463653676,11.21452119,153.72,153.68,36.3711709]
[1749463654157,11.21452119,153.72,153.69,2.37029193]
[1749463654356,51.75452119,153.73,153.69,11.21452119]
[1749463654578,51.75452119,153.73,153.7,2.37011034]
[1749463654759,40.54,153.73,153.69,11.21452119]
[1749463654960,51.75452119,153.73,153.7,2.37011034]
[1749463655176,51.75452119,153.73,153.69,11.21452119]
[1749463655480,51.75452119,153.73,153.7,2.37018486]
[1749463655680,51.75452119,153.73,153.69,11.21452119]
[1749463655681,40.54,153.73,153.71,2.37022363]
[1749463655982,40.54,153.73,153.71,11.21452119]
[1749463656189,62.49452119,153.76,153.72,2.36942284]
[1749463656356,62.49452119,153.76,153.73,2.36942284]
[1749463656554,62.49452119,153.76,153.71,11.21452119]
[1749463657559,11.21452119,153.75,153.71,17.72007068]
[1749463657890,10.74,153.76,153.73,11.21452119]
[1749463658261,21.95452119,153.76,153.72,11.21452119]
[1749463658460,21.95452119,153.76,153.72,29.86417005]
[1749463659361,10.74,153.76,153.73,6.5049112]
[1749463659768,21.95452119,153.76,153.72,36.36934126]
[1749463660469,10.74,153.76,153.73,18.64964886]
[1749463660678,11.21452119,153.78,153.74,11.21452119]
[1749463660867,51.73452119,153.78,153.74,11.21452119]
[1749463661389,51.73452119,153.78,153.74,17.71888072]
[1749463662090,11.21452119,153.78,153.74,17.71888072]
[1749463662591,37.21452119,153.79,153.74,17.71888072]
[1749463663162,11.21452119,153.8,153.75,29.86417005]
[1749463663362,11.21452119,153.8,153.76,17.71792987]
[1749463663587,47.93452119,153.81,153.76,17.71792987]
[1749463663887,11.21452119,153.8,153.76,17.71792987]
[1749463664075,11.21452119,153.79,153.75,18.64964886]
[1749463665193,11.21452119,153.79,153.75,36.36814439]
[1749463665492,58.23652158,153.8,153.75,36.36814439]
[1749463665802,51.73452119,153.8,153.76,11.21452119]
[1749463666890,51.73452119,153.8,153.76,17.71799781]
[1749463669674,10.72,153.81,153.78,11.21452119]
[1749463670471,11.21452119,153.83,153.78,11.21452119]
[1749463670705,11.21452119,153.83,153.79,29.86417005]
[1749463670907,11.21452119,153.83,153.79,18.64964886]
[1749463671189,11.21452119,153.83,153.78,11.21452119]
[1749463671190,11.21452119,153.82,153.78,18.64964886]
[1749463671603,11.21452119,153.82,153.78,6.50263685]
[1749463671779,11.21452119,153.81,153.78,25.15228571]
[1749463671983,11.21452119,153.8,153.77,18.64964886]
[1749463672386,47.00051826,153.84,153.77,18.64964886]
[1749463672387,11.21452119,153.81,153.77,18.64964886]
[1749463674092,11.21452119,153.81,153.77,25.15273173]
[1749463674595,11.21452119,153.82,153.77,36.36725292]
[1749463674979,11.21452119,153.82,153.78,11.21452119]
[1749463675973,11.21452119,153.82,153.78,17.71707672]
[1749463676185,11.21452119,153.8,153.77,18.64964886]
[1749463676795,46.98077526,153.83,153.76,11.21452119]
[1749463676796,11.21452119,153.82,153.78,29.86417005]
[1749463677702,11.13652119,153.82,153.78,18.64964886]
[1749463678279,17.63766528,153.82,153.77,17.71766959]
[1749463678507,11.21452119,153.81,153.77,17.71766959]
[1749463678707,11.21452119,153.81,153.77,6.5031484]
[1749463679014,11.21452119,153.81,153.77,17.71766959]
[1749463679811,11.21452119,153.81,153.77,18.64964886]
[1749463680709,11.21452119,153.81,153.77,29.86417005]
[1749463680916,11.21452119,153.81,153.78,2.36758032]
[1749463681118,11.21452119,153.81,153.77,36.3673447]
[1749463681289,11.21452119,153.81,153.78,2.36758032]
[1749463681616,11.21452119,153.81,153.77,36.3673447]
[1749463682682,11.21452119,153.81,153.78,2.36800201]
[1749463682887,11.21452119,153.81,153.74,16.54552609]
[1749463682888,11.21452119,153.79,153.75,18.64964886]
[1749463683120,11.21452119,153.78,153.75,18.64964886]
[1749463683424,11.21452119,153.77,153.74,18.64964886]
[1749463683708,11.21452119,153.77,153.75,2.36943697]
[1749463683910,11.21452119,153.78,153.74,29.86417005]
[1749463684293,40.48,153.79,153.75,17.71858623]
[1749463684487,51.69452119,153.79,153.75,17.71858623]
[1749463684687,51.69452119,153.79,153.76,2.36883499]
[1749463684893,51.69452119,153.79,153.75,6.50406504]
[1749463686408,11.21452119,153.78,153.74,36.36864752]
[1749463686629,11.21452119,153.76,153.72,1.5468]
[1749463686798,11.21452119,153.76,153.73,18.64964886]
[1749463687796,11.21452119,153.76,153.72,1.5468]
[1749463687797,11.21452119,153.76,153.72,6.50533185]
[1749463688018,11.21452119,153.76,153.72,18.64964886]
[1749463688335,11.21452119,153.74,153.7,6.50613774]
[1749463688529,11.21452119,153.74,153.71,18.64964886]
[1749463688826,11.21452119,153.76,153.71,29.86417005]
[1749463689196,11.21452119,153.76,153.72,11.21452119]
[1749463690121,11.21452119,153.76,153.72,17.71967486]
[1749463691421,6.50312875,153.78,153.72,17.71967486]
[1749463691624,11.21452119,153.76,153.72,17.71967486]
[1749463692208,11.21452119,153.75,153.71,17.72014942]
[1749463692515,11.21452119,153.74,153.7,18.64964886]
[1749463692695,11.21452119,153.74,153.7,29.86417005]
[1749463693616,11.21452119,153.75,153.71,17.72027878]
[1749463694027,11.21452119,153.74,153.71,6.50575759]
[1749463694434,22.7597867,153.78,153.7,18.64964886]
[1749463694639,11.21452119,153.72,153.68,19.28105616]
[1749463694812,11.21452119,153.72,153.69,18.64964886]
[1749463696022,11.21452119,153.72,153.69,25.15598]
[1749463696338,40.46,153.74,153.69,25.15598]
[1749463696516,11.21452119,153.73,153.69,36.37050119]
[1749463698642,11.21452119,153.72,153.69,25.15598]
[1749463698940,11.21452119,153.72,153.69,18.64964886]
[1749463699242,11.21452119,153.72,153.67,17.72182399]
[1749463699442,11.21452119,153.71,153.68,18.64964886]
[1749463700935,17.72037375,153.71,153.66,11.21452119]
[1749463701138,11.21452119,153.68,153.66,18.64964886]
[1749463701337,6.50585256,153.71,153.65,18.64964886]
[1749463701540,11.21452119,153.68,153.65,18.64964886]
[1749463701720,11.21452119,153.67,153.63,6.509091]
[1749463702022,11.21452119,153.67,153.64,18.64964886]
[1749463702636,11.21452119,153.67,153.64,25.15833554]
[1749463705251,11.21452119,153.66,153.62,32.50924273]
[1749463705551,11.21452119,153.66,153.63,18.64964886]
[1749463706230,11.21452119,153.66,153.63,25.15873153]
[1749463706925,11.21452119,153.64,153.62,6.50950527]
[1749463707252,11.21452119,153.64,153.6,12.73652119]
[1749463707253,11.21452119,153.64,153.61,18.64964886]
[1749463708349,11.21452119,153.64,153.61,25.15955344]
[1749463709253,11.21452119,153.65,153.61,25.15955344]
[1749463710240,11.21452119,153.64,153.61,25.15955344]
[1749463710445,11.21452119,153.63,153.6,18.64964886]
[1749463710658,11.21452119,153.63,153.59,6.51068861]
[1749463710659,11.21452119,153.61,153.57,6.51159803]
[1749463710831,11.21452119,153.6,153.57,6.51159803]
[1749463713044,11.21452119,153.61,153.57,6.51159803]
[1749463720660,11.21452119,153.6,153.57,6.51159803]
[1749463721539,11.21452119,153.59,153.56,3.33122479]
[1749463721856,11.21452119,153.57,153.54,6.51281018]
[1749463722029,63.24355157,153.62,153.54,6.51281018]
[1749463722030,11.21452119,153.56,153.54,6.51281018]
[1749463722662,11.21452119,153.57,153.54,6.51281018]
[1749463722839,10.68,153.6,153.55,29.86417005]
[1749463723043,51.69452119,153.61,153.57,11.21452119]
[1749463723239,40.48,153.61,153.58,11.21452119]
[1749463723454,40.48,153.61,153.57,11.21452119]
[1749463724656,40.48,153.61,153.58,11.21452119]
[1749463724840,21.89452119,153.62,153.59,6.51084054]
[1749463726647,11.21452119,153.61,153.57,6.51168848]
[1749463726845,11.21452119,153.61,153.57,18.64964886]
[1749463727959,10.68,153.62,153.57,6.51168848]
[1749463727960,11.21452119,153.6,153.57,6.51168848]
[1749463728143,17.18956982,153.62,153.57,6.51168848]
[1749463728144,11.21452119,153.59,153.57,6.51168848]
[1749463728342,11.21452119,153.59,153.56,6.51195215]
[1749463729748,40.46,153.6,153.55,6.51253663]
[1749463729947,11.21452119,153.58,153.55,6.51253663]
[1749463732039,11.21452119,153.58,153.54,25.16260965]
[1749463732852,11.21452119,153.58,153.54,6.51296079]
[1749463733259,11.21452119,153.57,153.54,6.51296079]
[1749463736845,51.67452119,153.6,153.54,25.16260965]
[1749463737040,11.21452119,153.59,153.55,11.21452119]
[1749463738368,11.21452119,153.59,153.56,6.51211252]
[1749463740457,11.21452119,153.59,153.55,6.51253663]
[1749463741374,40.46,153.6,153.55,6.51253663]
[1749463741375,11.21452119,153.58,153.55,6.51253663]
[1749463741673,11.21452119,153.57,153.55,6.51253663]
[1749463742359,11.21452119,153.58,153.54,6.51296079]
[1749463743178,11.21452119,153.57,153.54,6.51296079]
[1749463744056,11.21452119,153.56,153.53,6.51331161]
[1749463744253,11.21452119,153.57,153.53,6.51331161]
[1749463744649,11.21452119,153.58,153.54,2.36688363]
[1749463744850,11.21452119,153.58,153.53,20.93236892]
[1749463745147,11.21452119,153.58,153.54,2.36673812]
[1749463745354,11.21452119,153.58,153.53,20.93236892]
[1749463745771,11.21452119,153.58,153.53,37.21583143]
[1749463746075,11.21452119,153.59,153.56,6.51211252]
[1749463747258,11.21452119,153.61,153.57,11.21452119]
[1749463747461,51.67452119,153.61,153.57,11.21452119]
[1749463747766,51.67452119,153.61,153.56,17.72663371]
[1749463748271,51.14,153.62,153.58,11.21452119]
[1749463748789,21.89452119,153.62,153.58,11.21452119]
[1749463749352,10.68,153.62,153.58,11.21452119]
[1749463749558,11.21452119,153.64,153.6,11.21452119]
[1749463750180,11.21452119,153.64,153.57,18.64964886]
[1749463750181,11.21452119,153.63,153.58,11.21452119]
[1749463751778,11.21452119,153.62,153.58,11.21452119]
[1749463752176,11.21452119,153.62,153.57,36.37573313]
[1749463753271,11.21452119,153.61,153.57,17.72608427]
[1749463754071,11.21452119,153.6,153.55,12.87122119]
[1749463754282,11.21452119,153.59,153.55,19.38366886]
[1749463754469,11.21452119,153.59,153.55,8.16914767]
[1749463754672,11.21452119,153.6,153.55,19.38366886]
[1749463755068,11.21452119,153.6,153.56,2.36607235]
[1749463755275,11.21452119,153.6,153.55,19.38366886]
[1749463755470,40.44,153.61,153.57,29.86417005]
[1749463755683,21.87452119,153.63,153.58,11.21452119]
[1749463755984,21.87452119,153.63,153.59,11.21452119]
[1749463755985,62.31452119,153.63,153.59,11.21452119]
[1749463756285,10.66,153.63,153.6,6.51041666]
[1749463756591,11.21452119,153.64,153.6,6.51041666]
[1749463756882,11.21452119,153.63,153.59,25.16034537]
[1749463757194,11.21452119,153.62,153.58,6.51117507]
[1749463759590,11.21452119,153.61,153.58,6.51117507]
[1749463761867,11.21452119,153.6,153.57,6.51163947]
[1749463763297,11.21452119,153.59,153.56,6.51205113]
[1749463767208,11.21452119,153.58,153.55,6.51247345]
[1749463767800,11.21452119,153.58,153.54,6.51293901]
[1749463768108,11.21452119,153.57,153.53,9.71776243]
[1749463768278,11.21452119,153.56,153.53,6.51322631]
[1749463768998,11.21452119,153.57,153.53,6.51322631]
[1749463771382,11.21452119,153.56,153.53,6.51322631]
[1749463778512,11.21452119,153.57,153.53,6.51322631]
[1749463779887,10.66,153.6,153.53,34.01121001]
[1749463780100,11.21452119,153.59,153.54,11.21452119]
[1749463781900,11.21452119,153.59,153.55,6.51253663]
[1749463782602,11.21452119,153.59,153.55,17.72705782]
[1749463782912,26.0,153.63,153.55,17.72705782]
[1749463782913,11.21452119,153.65,153.58,11.21452119]
[1749463783092,11.21452119,153.64,153.6,11.21452119]
[1749463783303,11.21452119,153.63,153.58,11.21452119]
[1749463783502,11.21452119,153.62,153.58,11.21452119]
[1749463783902,11.21452119,153.63,153.59,6.51084054]
[1749463786116,11.21452119,153.63,153.58,17.72563406]
[1749463787202,11.21452119,153.62,153.58,17.72563406]
[1749463787508,11.21452119,153.6,153.55,6.51240765]
[1749463787691,11.21452119,153.59,153.55,6.51240765]
[1749463789388,11.21452119,153.59,153.55,17.72692884]
[1749463790214,11.21452119,153.6,153.55,17.72692884]
[1749463790600,11.21452119,153.59,153.55,17.72692884]
[1749463791284,11.21452119,153.59,153.55,6.51240765]
[1749463792417,11.21452119,153.6,153.55,17.72692884]
[1749463793492,51.61452119,153.61,153.56,29.86417005]
[1749463793687,10.64,153.62,153.58,11.21452119]
[1749463793907,10.64,153.62,153.56,18.64964886]
[1749463793908,10.64,153.62,153.59,11.21452119]
[1749463795592,10.64,153.62,153.6,6.51041666]
[1749463795913,10.64,153.62,153.59,17.72522036]
[1749463802097,11.21452119,153.65,153.61,11.21452119]
[1749463802300,11.21452119,153.65,153.59,22.78780054]
[1749463802301,11.21452119,153.63,153.59,6.51069917]
[1749463802519,40.38,153.65,153.59,6.51069917]
[1749463802520,11.21452119,153.62,153.59,6.51069917]
[1749463802827,11.21452119,153.62,153.58,17.7256423]
[1749463803028,11.21452119,153.62,153.58,6.51112111]
[1749463804018,11.21452119,153.62,153.58,17.7256423]
[1749463804523,46.88834659,153.65,153.58,17.7256423]
[1749463804726,10.64,153.66,153.61,11.21452119]
[1749463804929,10.64,153.66,153.63,11.21452119]
[1749463805224,11.21452119,153.69,153.65,11.21452119]
[1749463805536,11.21452119,153.69,153.63,18.64964886]
[1749463805537,21.85452119,153.7,153.66,17.72239571]
[1749463806227,11.21452119,153.69,153.65,17.72274781]
[1749463807921,11.21452119,153.69,153.64,17.72310135]
[1749463808205,11.21452119,153.65,153.61,11.21452119]
[1749463809527,11.21452119,153.65,153.61,17.72443125]
[1749463810116,11.21452119,153.66,153.62,11.21452119]
[1749463810309,40.36,153.67,153.63,11.21452119]
[1749463810513,49.74768193,153.7,153.65,11.21452119]
[1749463810514,21.85452119,153.7,153.65,11.21452119]
[1749463810831,62.21452119,153.7,153.65,11.21452119]
[1749463811336,51.0,153.7,153.65,11.21452119]
[1749463811518,62.21452119,153.7,153.67,6.50745103]
[1749463812613,62.21452119,153.7,153.65,18.64964886]
[1749463812932,62.21452119,153.7,153.65,29.86417005]
[1749463814418,62.21452119,153.7,153.65,36.37232991]
[1749463816215,51.0,153.7,153.65,36.37232991]
[1749463816438,62.21452119,153.7,153.65,36.37232991]
[1749463816633,11.21452119,153.69,153.65,36.37232991]
[1749463817343,10.64,153.7,153.67,11.21452119]
[1749463817527,21.85452119,153.7,153.65,36.37232991]
[1749463817838,21.85452119,153.7,153.64,19.30152391]
[1749463817839,11.21452119,153.69,153.64,19.30152391]
[1749463818023,11.21452119,153.68,153.64,8.08700272]
[1749463818221,11.21452119,153.67,153.64,6.50860272]
[1749463818422,11.21452119,153.67,153.63,36.37317598]
[1749463819333,11.21452119,153.67,153.63,25.15865479]
[1749463820820,11.21452119,153.67,153.62,43.79302119]
[1749463820821,11.21452119,153.66,153.62,6.5094072]
[1749463821028,40.34,153.68,153.62,6.5094072]
[1749463821233,11.21452119,153.66,153.62,6.5094072]
[1749463821652,40.34,153.68,153.61,29.86417005]
[1749463821653,11.21452119,153.65,153.61,25.15955361]